fUSD/lending_fUSD_20240619
["ID","MTS","AMOUNT","RATE_DAILY","PERIOD"]
[329895990,1718802663146,-500.0,0.00013872,2]
[329895991,1718802663157,-500.0,0.00013872,2]
[329895992,1718802663169,-500.0,0.00013872,2]
[329895993,1718802663182,-500.0,0.00013872,2]
[329895994,1718802663194,-500.0,0.00013872,2]
[329895995,1718802663204,-500.0,0.00013872,2]
[329895996,1718802663216,-500.0,0.00013872,2]
[329895997,1718802663227,-500.0,0.00013872,2]
[329895998,1718802663240,-500.0,0.00013872,2]
[329895999,1718802663251,-500.0,0.00013872,2]
[329896000,1718802663263,-500.0,0.00013872,2]
[329896001,1718802663275,-500.0,0.00013872,2]
[329896002,1718802663286,-500.0,0.00013872,2]
[329896003,1718802663298,-500.0,0.00013872,2]
[329896004,1718802663309,-500.0,0.00013872,2]
[329896005,1718802663321,-500.0,0.00013872,2]
[329896006,1718802663332,-500.0,0.00013872,2]
[329896007,1718802663345,-500.0,0.00013872,2]
[329896008,1718802663357,-500.0,0.00013872,2]
[329896009,1718802663369,-500.0,0.00013872,2]
[329896010,1718802663382,-500.0,0.00013872,2]
[329896011,1718802663393,-500.0,0.00013872,2]
[329896012,1718802663405,-500.0,0.00013872,2]
[329896013,1718802663416,-500.0,0.00013872,2]
[329896014,1718802663429,-500.0,0.00013872,2]
[329896015,1718802663440,-500.0,0.00013872,2]
[329896016,1718802663451,-500.0,0.00013872,2]
[329896017,1718802663463,-500.0,0.00013872,2]
[329896018,1718802663475,-500.0,0.00013872,2]
[329896019,1718802663487,-500.0,0.00013872,2]
[329896020,1718802663499,-500.0,0.00013872,2]
[329896021,1718802663512,-500.0,0.00013872,2]
[329896022,1718802663524,-500.0,0.00013872,2]
[329896023,1718802663536,-500.0,0.00013872,2]
[329896024,1718802663549,-500.0,0.00013872,2]
[329896025,1718802663561,-500.0,0.00013872,2]
[329896026,1718802663572,-500.0,0.00013872,2]
[329896027,1718802663584,-500.0,0.00013872,2]
[329896028,1718802663596,-500.0,0.00013872,2]
[329896029,1718802663608,-500.0,0.00013872,2]
[329896030,1718802663621,-500.0,0.00013872,2]
[329896031,1718802663633,-500.0,0.00013872,2]
[329896032,1718802663645,-500.0,0.00013872,2]
[329896033,1718802663656,-500.0,0.00013872,2]
[329896034,1718802663675,-500.0,0.00013872,2]
[329896035,1718802663686,-500.0,0.00013872,2]
[329896036,1718802663699,-500.0,0.00013872,2]
[329896037,1718802663712,-500.0,0.00013872,2]
[329896038,1718802663724,-500.0,0.00013872,2]
[329896039,1718802663737,-500.0,0.00013872,2]
[329896040,1718802663749,-500.0,0.00013872,2]
[329896041,1718802663761,-500.0,0.00013872,2]
[329896042,1718802663774,-500.0,0.00013872,2]
[329896043,1718802663787,-500.0,0.00013872,2]
[329896044,1718802663799,-171.12979609,0.00013872,2]
[329896045,1718802663812,-500.0,0.00013872,2]
[329896046,1718802663824,-500.0,0.00013872,2]
[329896047,1718802663837,-500.0,0.00013872,2]
[329896048,1718802663849,-500.0,0.00013872,2]
[329896049,1718802663860,-500.0,0.00013872,2]
[329896050,1718802663871,-500.0,0.00013872,2]
[329896051,1718802663883,-500.0,0.00013872,2]
[329896052,1718802663895,-500.0,0.00013872,2]
[329896053,1718802663906,-500.0,0.00013872,2]
[329896054,1718802663918,-500.0,0.00013872,2]
[329896055,1718802663933,-500.0,0.00013872,2]
[329896056,1718802663945,-7095.3107,0.00013872,2]
[329896057,1718802663957,-500.0,0.00013887,2]
[329896058,1718802663969,-500.0,0.00013888,2]
[329896059,1718802663981,-500.0,0.00013888,2]
[329896060,1718802663993,-200.0,0.00013888,2]
[329896061,1718802664005,-500.0,0.00013888,2]
[329896062,1718802664017,-587.0,0.00013889,2]
[329896063,1718802664029,-274.18,0.0001389,3]
[329896064,1718802664043,-600.0,0.00013893,2]
[329896065,1718802664054,-753.4814338,0.000139,2]
[329896066,1718802664067,-1000.0,0.000139,2]
[329896067,1718802664078,-4375.52945734,0.000139,2]
[329896068,1718802664090,-7369.32,0.00013938,2]
[329896069,1718802664101,-193.16948895,0.00013962,2]
[329896070,1718802664113,-5608.45722034,0.00013965,2]
[329896071,1718802664124,-500.0,0.00013972,2]
[329896072,1718802664138,-500.0,0.00013972,2]
[329896073,1718802664150,-594.78,0.00013972,2]
[329896074,1718802664162,-665.56,0.00013972,2]
[329896075,1718802664173,-567.72,0.00013972,2]
[329896076,1718802664185,-500.0,0.00013972,2]
[329896077,1718802664197,-933.74,0.00013972,2]
[329896078,1718802664209,-624.57,0.00013972,2]
[329896079,1718802664220,-500.0,0.00013972,2]
[329896080,1718802664232,-500.0,0.00013972,2]
[329896081,1718802664244,-500.0,0.00013972,2]
[329896082,1718802664255,-500.0,0.00013972,2]
[329896083,1718802664267,-500.0,0.00013972,2]
[329896084,1718802664278,-500.0,0.00013972,2]
[329896085,1718802664290,-813.22,0.00013972,2]
[329896086,1718802664302,-500.0,0.00013972,2]
[329896087,1718802664314,-259.17869491,0.00013972,2]
[329896088,1718802664325,-555.0,0.00013972,2]
[329896089,1718802664337,-500.0,0.00013972,2]
[329896090,1718802664348,-1107.29,0.00013972,2]
[329896091,1718802664360,-500.0,0.00013972,2]
[329896092,1718802664371,-500.0,0.00013972,2]
[329896093,1718802664382,-972.6,0.00013972,2]
[329896094,1718802664394,-500.0,0.00013972,2]
[329896095,1718802664405,-500.0,0.00013972,2]
[329896096,1718802664416,-694.53,0.00013972,2]
[329896097,1718802664428,-500.0,0.00013972,2]
[329896098,1718802664439,-500.0,0.00013972,2]
[329896099,1718802664450,-500.0,0.00013972,2]
[329896100,1718802664462,-500.0,0.00013972,2]
[329896101,1718802664473,-500.0,0.00013972,2]
[329896102,1718802664484,-500.0,0.00013972,2]
[329896103,1718802664496,-500.0,0.00013972,2]
[329896104,1718802664507,-500.0,0.00013972,2]
[329896105,1718802664519,-500.0,0.00013972,2]
[329896106,1718802664530,-500.0,0.00013972,2]
[329896107,1718802664541,-638.99,0.00013972,2]
[329896108,1718802664552,-547.0,0.00013972,2]
[329896109,1718802664563,-500.0,0.00013972,2]
[329896110,1718802664574,-500.0,0.00013972,2]
[329896111,1718802664586,-990.63,0.00013972,2]
[329896112,1718802664597,-992.23,0.00013972,2]
[329896113,1718802664607,-500.0,0.00013972,2]
[329896114,1718802664619,-500.0,0.00013972,2]
[329896115,1718802664630,-739.94,0.00013972,2]
[329896116,1718802664642,-500.0,0.00013972,2]
[329896117,1718802664652,-500.0,0.00013972,2]
[329896118,1718802664665,-500.0,0.00013972,2]
[329896119,1718802664678,-928.78,0.00013972,2]
[329896120,1718802664689,-640.1,0.00013972,2]
[329896121,1718802664701,-881.92,0.00013972,2]
[329896122,1718802664712,-607.02,0.00013972,2]
[329896123,1718802664722,-500.0,0.00013972,2]
[329896124,1718802664734,-500.0,0.00013972,2]
[329896125,1718802664746,-830.95,0.00013972,2]
[329896126,1718802664758,-888.65,0.00013972,2]
[329896127,1718802664769,-500.0,0.00013972,2]
[329896128,1718802664780,-500.0,0.00013972,2]
[329896129,1718802664791,-500.0,0.00013972,2]
[329896130,1718802664802,-500.0,0.00013972,2]
[329896131,1718802664813,-653.68,0.00013972,2]
[329896132,1718802664824,-500.0,0.00013972,2]
[329896133,1718802664835,-500.0,0.00013972,2]
[329896134,1718802664846,-500.0,0.00013972,2]
[329896135,1718802664857,-575.56,0.00013972,2]
[329896136,1718802664868,-500.0,0.00013972,2]
[329896137,1718802664878,-500.0,0.00013972,2]
[329896138,1718802664889,-500.0,0.00013972,2]
[329896139,1718802664900,-794.39,0.00013972,2]
[329896140,1718802664911,-500.0,0.00013972,2]
[329896141,1718802664923,-500.0,0.00013972,2]
[329896142,1718802664935,-734.7,0.00013972,2]
[329896143,1718802664947,-500.0,0.00013972,2]
[329896144,1718802664958,-644.26,0.00013972,2]
[329896145,1718802664969,-500.0,0.00013972,2]
[329896146,1718802664980,-1635.27,0.00013972,2]
[329896147,1718802664991,-500.0,0.00013972,2]
[329896148,1718802665002,-500.0,0.00013972,2]
[329896149,1718802665013,-600.89,0.00013972,2]
[329896150,1718802665024,-500.0,0.00013972,2]
[329896151,1718802665034,-500.0,0.00013972,2]
[329896152,1718802665046,-1307.32,0.00013972,2]
[329896153,1718802665056,-500.0,0.00013972,2]
[329896154,1718802665067,-942.04,0.00013972,2]
[329896155,1718802665078,-772.16,0.00013972,2]
[329896156,1718802665089,-560.26,0.00013972,2]
[329896157,1718802665101,-1618.05,0.00013972,2]
[329896158,1718802665112,-857.07,0.00013972,2]
[329896159,1718802665123,-500.0,0.00013972,2]
[329896160,1718802665134,-500.0,0.00013972,2]
[329896161,1718802665145,-500.0,0.00013972,2]
[329896162,1718802665156,-500.0,0.00013972,2]
[329896163,1718802665167,-1347.17,0.00013972,2]
[329896164,1718802665179,-1147.09,0.00013972,2]
[329896165,1718802665190,-500.0,0.00013972,2]
[329896166,1718802665201,-1258.06,0.00013972,2]
[329896167,1718802665212,-500.0,0.00013972,2]
[329896168,1718802665222,-632.6,0.00013972,2]
[329896169,1718802665234,-500.0,0.00013972,2]
[329896170,1718802665244,-1335.11,0.00013972,2]
[329896171,1718802665255,-535.61,0.00013972,2]
[329896172,1718802665267,-500.0,0.00013972,2]
[329896173,1718802665278,-2029.69,0.00013972,2]
[329896174,1718802665288,-1141.96,0.00013972,2]
[329896175,1718802665300,-500.0,0.00013972,2]
[329896176,1718802665311,-2138.97,0.00013972,2]
[329896177,1718802665322,-1291.44,0.00013972,2]
[329896178,1718802665332,-574.30343383,0.00013972,2]
[329896179,1718802665343,-500.0,0.00013972,2]
[329896180,1718802665354,-806.55,0.00013972,2]
[329896181,1718802665365,-1619.44,0.00013972,2]
[329896182,1718802665376,-500.0,0.00013972,2]
[329896183,1718802665387,-1902.96,0.00013972,2]
[329896184,1718802665398,-500.0,0.00013972,2]
[329896185,1718802665408,-500.0,0.00013972,2]
[329896186,1718802665420,-733.77522843,0.00013972,2]
[329896187,1718802666501,-580.11477157,0.00013972,2]
[329896188,1718802666511,-654.15,0.00013972,2]
[329896189,1718802666521,-504.12,0.00013972,2]
[329896190,1718802666531,-500.0,0.00013972,2]
[329896191,1718802666541,-489.63162763,0.00013972,2]
[329896192,1718802666554,-143.99837237,0.00013972,2]
[329896193,1718802666563,-1144.83,0.00013972,2]
[329896194,1718802666573,-500.0,0.00013972,2]
[329896195,1718802666582,-500.0,0.00013972,2]
[329896196,1718802666592,-500.0,0.00013972,2]
[329896197,1718802666601,-869.28,0.00013972,2]
[329896198,1718802666611,-759.84,0.00013972,2]
[329896199,1718802666621,-500.0,0.00013972,2]
[329896200,1718802666631,-685.4,0.00013972,2]
[329896201,1718802666641,-524.78,0.00013972,2]
[329896202,1718802666651,-500.0,0.00013972,2]
[329896203,1718802666664,-1007.97,0.00013972,2]
[329896204,1718802666681,-1242.1,0.00013972,2]
[329896205,1718802666690,-1086.88,0.00013972,2]
[329896206,1718802666699,-500.0,0.00013972,2]
[329896207,1718802666710,-798.7,0.00013972,2]
[329896208,1718802666719,-1036.8,0.00013972,2]
[329896209,1718802666728,-500.0,0.00013972,2]
[329896210,1718802666737,-537.97,0.00013972,2]
[329896211,1718802666746,-924.56,0.00013972,2]
[329896212,1718802666761,-500.0,0.00013972,2]
[329896213,1718802666771,-1155.6,0.00013972,2]
[329896214,1718802666780,-521.18,0.00013972,2]
[329896215,1718802666789,-1426.05,0.00013972,2]
[329896216,1718802666800,-674.24,0.00013972,2]
[329896217,1718802666809,-500.0,0.00013972,2]
[329896218,1718802666818,-818.19,0.00013972,2]
[329896219,1718802666828,-1085.4,0.00013972,2]
[329896220,1718802666837,-500.0,0.00013972,2]
[329896221,1718802666847,-500.0,0.00013972,2]
[329896222,1718802666856,-652.17,0.00013972,2]
[329896223,1718802666866,-500.0,0.00013972,2]
[329896224,1718802666875,-500.0,0.00013972,2]
[329896225,1718802666885,-829.42,0.00013972,2]
[329896226,1718802666894,-1006.11,0.00013972,2]
[329896227,1718802666904,-1325.33,0.00013972,2]
[329896228,1718802666913,-500.0,0.00013972,2]
[329896229,1718802666923,-1513.05,0.00013972,2]
[329896230,1718802666936,-1000.0,0.00013972,5]
[329896231,1718802666945,-647.31,0.00013972,2]
[329896232,1718802666954,-500.0,0.00013972,2]
[329896233,1718802666963,-500.0,0.00013972,2]
[329896234,1718802666972,-500.0,0.00013972,2]
[329896235,1718802666982,-1112.29,0.00013972,2]
[329896236,1718802666992,-500.0,0.00013972,2]
[329896237,1718802667004,-745.63,0.00013972,2]
[329896238,1718802667014,-1482.16,0.00013972,2]
[329896239,1718802667023,-500.0,0.00013972,2]
[329896240,1718802667032,-1948.64,0.00013972,2]
[329896241,1718802667042,-773.67,0.00013972,2]
[329896242,1718802667051,-500.0,0.00013972,2]
[329896243,1718802667061,-1220.47,0.00013972,2]
[329896244,1718802667070,-506.67988911,0.00013972,2]
[329896245,1718802667079,-754.80469179,0.00013972,2]
[329896260,1718802966278,-537.00312061,0.00010958,2]
[329896261,1718802966300,-815.46,0.00010959,2]
[329896272,1718803198427,150.0,0.00010978,2]
[329896273,1718803198450,150.0,0.00010978,2]
[329896274,1718803198472,150.0,0.00010978,2]
[329896275,1718803198496,150.0,0.00010978,2]
[329896276,1718803198520,57.2,0.00010978,2]
[329896278,1718803215220,92.8,0.00010978,2]
[329896279,1718803215243,150.0,0.00010978,2]
[329896280,1718803215265,150.0,0.00010978,2]
[329896281,1718803215286,150.0,0.00010978,2]
[329896282,1718803215308,247.19780051,0.00010978,2]
[329896283,1718803215330,150.0,0.00010978,2]
[329896284,1718803215352,157.14098565,0.00010978,2]
[329896285,1718803251697,150.0,0.00010978,2]
[329896286,1718803251721,1910.75780051,0.00010978,2]
[329896287,1718803263345,348.35621855,0.00010978,2]
[329896288,1718803277291,348.02276875,0.00010978,2]
[329896289,1718803632165,200.0,0.00010923,2]
[329896345,1718803832764,-253.77976892,0.00012205,2]
[329896346,1718803832774,-46.22023108,0.00012206,2]
[329896347,1718803832786,-1359.79976892,0.00012206,2]
[329896348,1718803832796,-153.61,0.00012298,2]
[329896349,1718803832805,-153.61,0.00012618,2]
[329896350,1718803832815,-3000.45410926,0.00012679,2]
[329896351,1718803832826,-1111.24589074,0.00012679,2]
[329896352,1718803832836,-250.0,0.0001287,2]
[329896353,1718803832846,-360.0,0.00012924,2]
[329896354,1718803832856,-250.0,0.00012924,2]
[329896355,1718803832866,-153.61,0.00012939,2]
[329896356,1718803832876,-1417.61785643,0.00012972,2]
[329896357,1718803832885,-300.0,0.00012999,2]
[329896358,1718803832896,-356.73,0.00013,2]
[329896359,1718803832907,-10687.08,0.00013,2]
[329896360,1718803832916,-499.99,0.0001301,2]
[329896361,1718803832926,-640.0,0.00013073,2]
[329896362,1718803832938,-657.2,0.00013242,2]
[329896363,1718803832948,-316.56325385,0.00013596,2]
[329896364,1718803832958,-127913.07975939,0.00013597,2]
[329896365,1718803832967,-6904.089,0.00013597,2]
[329896366,1718803832976,-6807.39079776,0.00013598,2]
[329896367,1718803832985,-169.3852174,0.00013598,2]
[329896369,1718803832995,-332.86681416,0.00013598,2]
[329896371,1718803833004,-57290.8705,0.00013598,2]
[329896373,1718803833014,-10000.0,0.00013598,2]
[329896375,1718803833024,-7500.0,0.00013598,2]
[329896376,1718803833034,-193.16948895,0.00013688,2]
[329896377,1718803833043,-190.41582912,0.00013697,2]
[329896378,1718803833052,-500.0,0.00013698,2]
[329896379,1718803833064,-287.36272254,0.00013698,2]
[329896380,1718803833073,-500.0,0.00013698,2]
[329896381,1718803833082,-500.0,0.00013698,2]
[329896382,1718803833091,-1015.02,0.00013698,2]
[329896383,1718803833100,-500.0,0.00013698,2]
[329896384,1718803833437,-500.0,0.00013698,2]
[329896385,1718803833446,-500.0,0.00013698,2]
[329896386,1718803833456,-500.0,0.00013698,2]
[329896387,1718803833466,-500.0,0.00013698,2]
[329896388,1718803833477,-585.74,0.00013698,2]
[329896389,1718803833488,-500.0,0.00013698,2]
[329896390,1718803833498,-500.0,0.00013698,2]
[329896391,1718803833508,-909.54,0.00013698,2]
[329896392,1718803833517,-500.0,0.00013698,2]
[329896393,1718803833530,-500.0,0.00013698,2]
[329896394,1718803833540,-500.0,0.00013698,2]
[329896395,1718803833550,-761.7,0.00013698,2]
[329896396,1718803833560,-586.76,0.00013698,2]
[329896397,1718803833570,-500.0,0.00013698,2]
[329896398,1718803833582,-556.43,0.00013698,2]
[329896399,1718803833592,-500.0,0.00013698,2]
[329896400,1718803833602,-500.0,0.00013698,2]
[329896401,1718803833612,-814.6,0.00013698,2]
[329896402,1718803833621,-808.42,0.00013698,2]
[329896403,1718803833630,-500.0,0.00013698,2]
[329896404,1718803833640,-500.0,0.00013698,2]
[329896405,1718803833650,-500.0,0.00013698,2]
[329896406,1718803833659,-500.0,0.00013698,2]
[329896407,1718803833669,-500.0,0.00013698,2]
[329896408,1718803833678,-500.0,0.00013698,2]
[329896409,1718803833689,-500.0,0.00013698,2]
[329896410,1718803833698,-500.0,0.00013698,2]
[329896411,1718803833707,-569.29363059,0.00013698,2]
[329896412,1718803833716,-500.0,0.00013698,2]
[329896413,1718803833725,-500.0,0.00013698,2]
[329896414,1718803833735,-599.2,0.00013698,2]
[329896415,1718803833744,-728.2,0.00013698,2]
[329896416,1718803833754,-527.6,0.00013698,2]
[329896417,1718803833763,-500.0,0.00013698,2]
[329896418,1718803833772,-706.95,0.00013698,2]
[329896419,1718803833782,-500.0,0.00013698,2]
[329896420,1718803833791,-500.0,0.00013698,2]
[329896421,1718803833800,-673.48,0.00013698,2]
[329896422,1718803833810,-796.84,0.00013698,2]
[329896423,1718803833819,-500.0,0.00013698,2]
[329896424,1718803833828,-1161.94,0.00013698,2]
[329896425,1718803833838,-500.0,0.00013698,2]
[329896426,1718803833847,-500.0,0.00013698,2]
[329896427,1718803833856,-500.0,0.00013698,2]
[329896428,1718803833866,-507.56,0.00013698,2]
[329896429,1718803833875,-500.0,0.00013698,2]
[329896430,1718803833885,-1393.66,0.00013698,2]
[329896431,1718803833895,-500.0,0.00013698,2]
[329896432,1718803833904,-785.65,0.00013698,2]
[329896433,1718803833913,-500.0,0.00013698,2]
[329896434,1718803833923,-500.0,0.00013698,2]
[329896435,1718803833934,-500.0,0.00013698,2]
[329896436,1718803833943,-500.0,0.00013698,2]
[329896437,1718803833952,-833.08,0.00013698,2]
[329896438,1718803833961,-550.82,0.00013698,2]
[329896439,1718803833970,-590.58,0.00013698,2]
[329896440,1718803833980,-500.0,0.00013698,2]
[329896441,1718803833990,-500.0,0.00013698,2]
[329896442,1718803833999,-500.0,0.00013698,2]
[329896443,1718803834009,-500.0,0.00013698,2]
[329896444,1718803834018,-500.0,0.00013698,2]
[329896445,1718803834028,-500.0,0.00013698,2]
[329896446,1718803834037,-1416.1,0.00013698,2]
[329896447,1718803834047,-500.0,0.00013698,2]
[329896448,1718803834057,-593.36,0.00013698,2]
[329896449,1718803834072,-500.0,0.00013698,2]
[329896450,1718803834082,-500.0,0.00013698,2]
[329896451,1718803834093,-1299.54,0.00013698,2]
[329896452,1718803834104,-728.64,0.00013698,2]
[329896453,1718803834115,-500.0,0.00013698,2]
[329896454,1718803834127,-500.0,0.00013698,2]
[329896455,1718803834139,-500.0,0.00013698,2]
[329896456,1718803834151,-500.0,0.00013698,2]
[329896457,1718803834161,-505.41,0.00013698,2]
[329896458,1718803834170,-500.0,0.00013698,2]
[329896459,1718803834179,-579.88,0.00013698,2]
[329896460,1718803834189,-579.33,0.00013698,2]
[329896461,1718803834197,-1070.26,0.00013698,2]
[329896462,1718803834206,-500.0,0.00013698,2]
[329896463,1718803834215,-500.0,0.00013698,2]
[329896464,1718803834225,-517.46596701,0.00013698,2]
[329896465,1718803834234,-500.0,0.00013698,2]
[329896466,1718803834244,-500.0,0.00013698,2]
[329896467,1718803834254,-500.0,0.00013698,2]
[329896468,1718803834264,-671.23,0.00013698,2]
[329896469,1718803834274,-580.83,0.00013698,2]
[329896470,1718803834283,-1592.24,0.00013698,2]
[329896471,1718803834292,-731.36,0.00013698,2]
[329896472,1718803834302,-500.0,0.00013698,2]
[329896473,1718803834311,-500.0,0.00013698,2]
[329896474,1718803834321,-908.07,0.00013698,2]
[329896475,1718803834332,-500.0,0.00013698,2]
[329896476,1718803834344,-1017.14,0.00013698,2]
[329896477,1718803834353,-628.28,0.00013698,2]
[329896478,1718803834363,-500.0,0.00013698,2]
[329896479,1718803834372,-500.0,0.00013698,2]
[329896480,1718803834382,-853.7,0.00013698,2]
[329896481,1718803834392,-500.0,0.00013698,2]
[329896482,1718803834404,-1351.26,0.00013698,2]
[329896483,1718803834416,-500.0,0.00013698,2]
[329896484,1718803834428,-500.0,0.00013698,2]
[329896485,1718803834438,-500.0,0.00013698,2]
[329896486,1718803834448,-395.9475776,0.00013698,2]
[329896487,1718803834457,-1252.27,0.00013698,2]
[329896488,1718803834467,-1110.58,0.00013698,2]
[329896489,1718803834479,-256.31902605,0.00013698,2]
[329896490,1718803834489,-500.0,0.00013698,2]
[329896491,1718803834501,-820.02,0.00013698,2]
[329896492,1718803834512,-500.0,0.00013698,2]
[329896493,1718803834523,-1115.74,0.00013698,2]
[329896494,1718803834534,-549.86837172,0.00013698,2]
[329896495,1718803834544,-949.44,0.00013698,2]
[329896496,1718803834553,-500.0,0.00013698,2]
[329896497,1718803834563,-500.0,0.00013698,2]
[329896498,1718803834572,-526.98,0.00013698,2]
[329896499,1718803834581,-736.58,0.00013698,2]
[329896500,1718803834591,-1481.97,0.00013698,2]
[329896501,1718803834600,-789.39,0.00013698,2]
[329896502,1718803834609,-1638.62,0.00013698,2]
[329896503,1718803834619,-500.0,0.00013698,2]
[329896504,1718803834628,-731.14,0.00013698,2]
[329896505,1718803834638,-743.0,0.00013698,2]
[329896506,1718803834648,-625.95,0.00013698,2]
[329896507,1718803834657,-1682.77,0.00013698,2]
[329896508,1718803834667,-971.23801443,0.00013698,5]
[329896509,1718803834686,-28.76198557,0.00013698,5]
[329896510,1718803834696,-1173.26,0.00013698,2]
[329896511,1718803834705,-1084.16,0.00013698,2]
[329896512,1718803834715,-2364.41,0.00013698,2]
[329896513,1718803834724,-500.0,0.00013698,2]
[329896514,1718803834733,-1152.37,0.00013698,2]
[329896515,1718803834743,-500.0,0.00013698,2]
[329896516,1718803834752,-500.0,0.00013698,2]
[329896517,1718803834762,-1713.69,0.00013698,2]
[329896518,1718803834771,-500.0,0.00013698,2]
[329896519,1718803834781,-1008.53,0.00013698,2]
[329896520,1718803834790,-884.68,0.00013698,2]
[329896521,1718803834800,-500.0,0.00013698,2]
[329896522,1718803834811,-972.19,0.00013698,2]
[329896523,1718803834822,-559.61769268,0.00013698,2]
[329896524,1718803834832,-500.0,0.00013698,2]
[329896525,1718803834841,-1855.63,0.00013698,2]
[329896526,1718803834850,-500.0,0.00013698,2]
[329896527,1718803834860,-545.22594779,0.00013698,2]
[329896528,1718803834870,-500.0,0.00013698,2]
[329896529,1718803834880,-1893.47,0.00013698,2]
[329896530,1718803834889,-500.0,0.00013698,2]
[329896531,1718803834900,-1135.34,0.00013698,2]
[329896532,1718803834909,-500.0,0.00013698,2]
[329896533,1718803834920,-1057.09,0.00013698,2]
[329896534,1718803834931,-500.0,0.00013698,2]
[329896535,1718803834940,-500.0,0.00013698,2]
[329896536,1718803834950,-500.0,0.00013698,2]
[329896537,1718803834959,-522.1,0.00013698,2]
[329896538,1718803834968,-500.0,0.00013698,2]
[329896539,1718803834978,-707.09,0.00013698,2]
[329896540,1718803834988,-517.5,0.00013698,2]
[329896541,1718803834997,-1094.22,0.00013698,2]
[329896542,1718803835007,-500.0,0.00013698,2]
[329896543,1718803835016,-500.0,0.00013698,2]
[329896544,1718803835026,-529.04,0.00013698,2]
[329896545,1718803835035,-650.1,0.00013698,2]
[329896546,1718803835046,-1245.91,0.00013698,2]
[329896547,1718803835059,-1004.83,0.00013698,2]
[329896548,1718803835072,-1017.14,0.00013698,2]
[329896549,1718803835082,-900.71,0.00013698,2]
[329896550,1718803835092,-500.0,0.00013698,2]
[329896551,1718803835103,-923.97,0.00013698,2]
[329896552,1718803835113,-728.36,0.00013698,2]
[329896553,1718803835122,-1244.33,0.00013698,2]
[329896554,1718803835132,-500.0,0.00013698,2]
[329896555,1718803835141,-500.0,0.00013698,2]
[329896556,1718803835152,-500.0,0.00013698,2]
[329896557,1718803835162,-1753.69,0.00013698,2]
[329896558,1718803835171,-500.0,0.00013698,2]
[329896559,1718803835180,-1198.38,0.00013698,2]
[329896560,1718803835190,-950.4,0.00013698,2]
[329896561,1718803835200,-1202.05,0.00013698,2]
[329896562,1718803835209,-1307.21,0.00013698,2]
[329896563,1718803835218,-500.0,0.00013698,2]
[329896564,1718803835227,-1329.3,0.00013698,2]
[329896565,1718803835237,-690.05,0.00013698,2]
[329896566,1718803835247,-5000.0,0.00013698,2]
[329896567,1718803835256,-500.0,0.00013698,2]
[329896568,1718803835266,-500.0,0.00013698,2]
[329896569,1718803835275,-956.53,0.00013698,2]
[329896570,1718803835285,-500.0,0.00013698,2]
[329896571,1718803835294,-500.0,0.00013698,2]
[329896572,1718803835304,-836.66,0.00013698,2]
[329896573,1718803835313,-500.0,0.00013698,2]